bitfinex/quotes_SOLUSD_20251214
["timestamp","ask_amount","ask_price","bid_price","bid_amount"]
[1765685992022,0.83216157,133.19,133.17,61.2]
[1765685992230,0.83216157,133.19,133.17,72.8032764]
[1765685992423,0.14216157,133.19,133.18,4.09411902]
[1765685992935,0.14216157,133.19,133.18,3.38411902]
[1765685993606,0.14216157,133.19,133.18,10.89275395]
[1765685993927,0.14216157,133.19,133.18,72.80275395]
[1765685994124,0.69,133.21,133.18,72.80275395]
[1765685994301,0.69,133.21,133.19,3.38411902]
[1765685994500,0.69,133.21,133.19,64.58411902]
[1765685995432,0.69,133.21,133.19,72.09218679]
[1765685998221,0.14216157,133.2,133.19,72.09218679]
[1765686001225,0.14216157,133.2,133.19,68.70806777]
[1765686001426,0.14216157,133.2,133.19,72.09218679]
[1765686003390,0.14216157,133.2,133.19,72.78218679]
[1765686003531,0.2,133.25,133.19,76.16630581]
[1765686003718,0.65,133.24,133.2,4.07411902]
[1765686003923,0.2,133.25,133.23,2.16366243]
[1765686004240,0.34216157,133.25,133.24,2.16366243]
[1765686005441,0.99216157,133.25,133.24,2.16366243]
[1765686006245,0.2,133.25,133.24,2.16366243]
[1765686008456,0.2,133.25,133.23,10.35940359]
[1765686011757,0.2,133.25,133.24,2.16366243]
[1765686013364,0.2,133.25,133.24,2.16348931]
[1765686014348,0.2,133.25,133.24,63.36348931]
[1765686014757,0.2,133.25,133.24,61.2]
[1765686015744,0.2,133.25,133.24,63.36348931]
[1765686019851,0.2,133.25,133.24,61.2]
[1765686021144,0.85,133.25,133.24,61.2]
[1765686021544,8.496852,133.25,133.24,61.2]
[1765686026386,0.14216157,133.24,133.22,63.36348931]
[1765686026553,8.31741524,133.24,133.22,61.2]
[1765686026967,0.81216157,133.23,133.22,61.2]
[1765686031993,8.31797857,133.23,133.22,61.2]
[1765686032288,8.31797857,133.23,133.2,69.42]
[1765686032491,0.14216157,133.21,133.2,70.08]
[1765686033091,0.14216157,133.21,133.2,69.42]
[1765686033287,0.14216157,133.21,133.2,61.2]
[1765686035391,0.14216157,133.21,133.2,61.86]
[1765686046503,0.67,133.21,133.2,61.2]
[1765686047102,0.14216157,133.23,133.2,61.2]
[1765686047103,0.67,133.22,133.2,61.86]
[1765686048206,0.67,133.22,133.2,61.2]
[1765686050682,0.67,133.22,133.2,61.86]
[1765686054212,0.67,133.22,133.2,61.2]
[1765686055822,0.67,133.22,133.2,61.86]
[1765686056624,0.67,133.22,133.2,61.2]
[1765686058905,0.67,133.22,133.2,61.86]
[1765686062233,0.67,133.22,133.2,61.2]
[1765686064602,0.14216157,133.21,133.19,61.86]
[1765686065129,0.85216157,133.21,133.19,61.86]
[1765686066218,0.14216157,133.21,133.19,61.86]
[1765686068734,0.14216157,133.21,133.19,69.36802799]
[1765686069307,0.14216157,133.21,133.19,72.75098717]
[1765686070957,0.14216157,133.21,133.19,65.24295918]
[1765686071825,0.14216157,133.21,133.19,72.7510245]
[1765686074534,0.14216157,133.21,133.2,0.66]
[1765686075038,0.14216157,133.21,133.19,72.7510245]
[1765686075205,0.14216157,133.22,133.2,11.55046668]
[1765686075610,0.71,133.24,133.21,0.66]
[1765686075822,0.71,133.23,133.21,0.66]
[1765686076239,0.71,133.23,133.21,4.04295918]
[1765686076543,0.14216157,133.22,133.21,4.04295918]
[1765686079640,0.14216157,133.23,133.21,65.24295918]
[1765686079815,0.85216157,133.23,133.21,65.24295918]
[1765686082843,0.85216157,133.23,133.21,61.86]
[1765686088240,0.14216157,133.23,133.21,61.86]
[1765686089029,0.84216157,133.23,133.21,61.86]
[1765686089950,0.14216157,133.23,133.21,61.86]
[1765686090157,0.14216157,133.23,133.21,61.2]
[1765686090446,0.14216157,133.23,133.22,0.68]
[1765686090657,0.9,133.25,133.22,70.1]
[1765686090953,0.14216157,133.23,133.22,73.48198467]
[1765686091140,0.7,133.24,133.22,73.48198467]
[1765686091333,0.14216157,133.23,133.22,73.48198467]
[1765686092762,0.14216157,133.23,133.22,80.98836509]
[1765686093056,0.14216157,133.23,133.22,80.30836509]
[1765686094162,0.34216157,133.25,133.22,80.98836509]
[1765686094338,1.04216157,133.25,133.23,0.68]
[1765686094537,1.04216157,133.25,133.23,65.26198467]
[1765686094761,1.04216157,133.25,133.23,61.88]
[1765686099863,1.04216157,133.25,133.23,61.2]
[1765686102959,0.34216157,133.25,133.23,61.2]
[1765686103263,0.7,133.24,133.23,61.2]
[1765686110566,0.84216157,133.24,133.23,61.2]
[1765686115266,0.84216157,133.24,133.22,61.88]
[1765686115470,0.84216157,133.24,133.22,65.26198467]
[1765686115852,0.14216157,133.24,133.22,65.26198467]
[1765686117844,0.14216157,133.24,133.23,0.72]
[1765686118376,0.14216157,133.24,133.22,72.80823488]
[1765686118776,8.10446289,133.25,133.23,3.38198467]
[1765686118979,0.2,133.25,133.24,3.38198467]
[1765686119172,0.2,133.25,133.24,4.10198467]
[1765686120261,0.2,133.25,133.24,4.09992988]
[1765686121376,0.2,133.25,133.24,65.29992988]
[1765686122057,0.2,133.25,133.24,72.80518355]
[1765686127879,0.2,133.25,133.24,71.58859028]
[1765686131983,0.2,133.25,133.24,69.42525367]
[1765686132162,0.2,133.25,133.24,64.08333661]
[1765686135877,1.04216157,133.25,133.24,61.2]
[1765686136077,8.546852,133.25,133.24,61.2]
[1765686136394,16.95046415,133.25,133.24,61.2]
[1765686139286,0.14216157,133.24,133.21,71.59014921]
[1765686139473,0.84216157,133.24,133.21,71.59014921]
[1765686144695,0.84216157,133.24,133.21,70.87014921]
[1765686144870,0.84216157,133.24,133.22,0.69]
[1765686145071,0.84216157,133.24,133.22,61.89]
[1765686145471,0.84216157,133.24,133.22,61.2]
[1765686146601,8.34756233,133.24,133.22,61.2]
[1765686146775,10.51089894,133.24,133.2,69.60361215]
[1765686147094,0.14216157,133.22,133.2,69.60361215]
[1765686147270,0.14216157,133.22,133.2,61.2]
[1765686147472,0.85216157,133.22,133.2,61.2]
[1765686153386,0.85216157,133.22,133.2,61.9]
[1765686155282,0.14216157,133.23,133.2,69.40748503]
[1765686155471,0.85216157,133.23,133.2,69.40748503]
[1765686183326,8.35804327,133.23,133.2,61.2]
[1765686183623,10.52311002,133.23,133.19,61.2]
[1765686183824,0.14216157,133.21,133.19,61.2]
[1765686184001,0.14216157,133.21,133.18,77.6383234]
[1765686184202,0.79216157,133.21,133.18,77.6383234]
[1765686184823,0.79216157,133.21,133.18,79.80339015]
[1765686185219,8.2992349,133.21,133.18,79.80339015]
[1765686185524,8.2992349,133.21,133.18,69.42]
[1765686185714,0.65,133.2,133.18,69.42]
[1765686186020,0.65,133.2,133.18,70.13]
[1765686186423,8.2992349,133.21,133.18,72.29506675]
[1765686186624,8.2992349,133.21,133.19,0.71]
[1765686189502,8.2992349,133.21,133.18,71.58506675]
[1765686189701,8.2992349,133.21,133.18,72.29506675]
[1765686190002,8.2992349,133.21,133.18,73.5131142]
[1765686190822,8.2992349,133.21,133.18,73.51314683]
[1765686191122,0.14216157,133.22,133.2,3.38314683]
[1765686191296,8.1558604,133.23,133.2,3.38314683]
[1765686191499,8.1558604,133.23,133.2,4.09314683]
[1765686191715,0.14216157,133.22,133.2,4.09314683]
[1765686193132,0.65,133.21,133.18,76.92852123]
[1765686193421,0.65,133.21,133.19,0.71]
[1765686195629,0.65,133.21,133.19,61.91]
[1765686199235,8.29856111,133.22,133.19,65.29314683]
[1765686204145,8.15639954,133.22,133.19,65.29314683]
[1765686206639,8.08111573,133.22,133.19,65.29314683]
[1765686210933,8.08111573,133.22,133.19,64.58314683]
[1765686211112,0.14216157,133.21,133.2,0.7]
[1765686212138,0.14216157,133.21,133.19,72.09121514]
[1765686212328,0.14216157,133.21,133.19,72.79121514]
[1765686226656,0.14216157,133.21,133.19,72.09121514]
[1765686226953,0.14216157,133.21,133.19,72.79121514]
[1765686227530,0.14216157,133.21,133.19,72.09121514]
[1765686227857,0.14216157,133.21,133.2,0.7]
[1765686229760,0.14216157,133.21,133.19,72.09080514]
[1765686229963,0.14216157,133.21,133.19,72.79080514]
[1765686230866,0.14216157,133.21,133.19,72.09080514]
[1765686231046,0.14216157,133.21,133.2,0.7]
[1765686231441,0.14216157,133.21,133.2,4.08273683]
[1765686231639,8.36482885,133.25,133.2,12.30273683]
[1765686231837,8.36482885,133.25,133.22,3.38273683]
[1765686232059,0.14216157,133.24,133.22,3.38273683]
[1765686232261,8.36482885,133.25,133.22,4.08273683]
[1765686232749,0.14216157,133.24,133.22,4.08273683]
[1765686237072,0.14216157,133.24,133.22,65.28273683]
[1765686239473,0.84216157,133.24,133.22,65.28273683]
[1765686245177,0.84216157,133.24,133.22,61.2]
[1765686246583,8.34750583,133.24,133.22,61.2]
[1765686246948,0.7,133.23,133.22,61.2]
[1765686247156,0.84216157,133.23,133.22,61.2]
[1765686247372,8.34797857,133.23,133.22,61.2]
[1765686248985,0.14216157,133.22,133.2,69.42]
[1765686249179,0.84216157,133.22,133.2,69.42]
[1765686249493,8.34854531,133.22,133.2,61.2]
[1765686249895,0.84216157,133.21,133.2,61.2]
[1765686251410,8.34910549,133.21,133.2,61.2]
[1765686251774,30.89956213,133.21,133.2,61.2]
[1765686253093,0.14216157,133.2,133.17,64.07572145]
[1765686253281,0.84216157,133.2,133.17,64.07572145]
[1765686253790,23.39431342,133.2,133.17,64.07572145]
[1765686254297,30.90190149,133.2,133.17,64.07572145]
[1765686255410,30.90190149,133.2,133.18,2.87572145]
[1765686256405,23.39431342,133.2,133.18,2.87572145]
[1765686256601,0.14216157,133.2,133.18,2.16572145]
[1765686256904,0.14216157,133.2,133.19,0.71]
[1765686258103,0.14216157,133.2,133.19,2.87572145]
[1765686259489,0.14216157,133.2,133.18,61.2]
[1765686259804,8.34975252,133.2,133.18,61.2]
[1765686260010,30.90190437,133.2,133.18,61.2]
[1765686263813,30.90190437,133.2,133.17,64.07558952]
[1765686264005,0.14216157,133.18,133.17,61.2]
[1765686269822,0.80216157,133.18,133.16,64.03558952]
[1765686271701,0.14216157,133.18,133.16,64.03558952]
[1765686282130,0.14216157,133.18,133.16,71.54533629]
[1765686285846,0.14216157,133.18,133.16,69.37974677]
[1765686286136,0.14216157,133.18,133.16,71.54533629]
[1765686288341,0.80216157,133.17,133.16,61.2]
[1765686288518,0.80216157,133.17,133.14,71.57606207]
[1765686288712,0.80216157,133.17,133.15,2.16558952]
[1765686289340,0.80216157,133.17,133.15,2.86558952]
[1765686289516,0.80216157,133.17,133.15,10.37589557]
[1765686289715,0.14216157,133.17,133.16,2.86558952]
[1765686291244,0.14216157,133.17,133.16,10.37535221]
[1765686293526,0.14216157,133.17,133.16,71.57535221]
[1765686294121,0.14216157,133.17,133.16,61.9]
[1765686294320,0.14216157,133.17,133.16,61.2]
[1765686294720,0.80216157,133.17,133.16,61.2]
[1765686295121,0.14216157,133.17,133.16,61.2]
[1765686299651,0.14216157,133.17,133.15,64.06621302]
[1765686300631,0.84216157,133.17,133.15,64.06621302]
[1765686300833,0.84216157,133.17,133.15,63.36621302]
[1765686301042,0.84216157,133.17,133.15,61.92]
[1765686302957,0.84216157,133.17,133.15,64.08621302]
[1765686305255,0.84216157,133.17,133.15,63.36621302]
[1765686307560,0.84216157,133.17,133.15,64.08621302]
[1765686308085,0.84216157,133.17,133.15,71.59629455]
[1765686308232,0.14216157,133.17,133.16,0.72]
[1765686308431,0.14216157,133.17,133.16,2.88621302]
[1765686311268,0.14216157,133.17,133.16,64.08621302]
[1765686311864,0.14216157,133.17,133.16,61.92]
[1765686316069,0.14216157,133.17,133.16,61.2]
[1765686316472,0.84216157,133.17,133.16,61.2]
[1765686323170,0.14216157,133.16,133.15,11.61459156]
[1765686329076,0.14216157,133.16,133.15,72.81459156]
[1765686333381,0.14216157,133.16,133.15,72.81473217]
[1765686334587,35.60093851,133.21,133.15,33.77519955]
[1765686334881,35.60093851,133.21,133.19,3.38465064]
[1765686334882,0.7,133.21,133.19,3.38465064]
[1765686335078,0.7,133.2,133.18,11.60465064]
[1765686335259,0.14216157,133.19,133.18,8.22]
[1765686335457,0.84216157,133.19,133.17,0.71]
[1765686335674,0.84216157,133.19,133.17,4.09465064]
[1765686336479,0.84216157,133.19,133.17,11.60366623]
[1765686338804,0.84216157,133.2,133.18,3.38465064]
[1765686339085,0.14216157,133.2,133.19,3.38465064]
[1765686339479,0.84216157,133.2,133.19,3.38465064]
[1765686339682,0.14216157,133.2,133.19,3.38465064]
[1765686341790,0.7,133.2,133.19,10.89103106]
[1765686341994,0.7,133.2,133.19,3.38465064]
[1765686343993,0.7,133.2,133.19,64.58465064]
[1765686356303,0.14216157,133.21,133.19,64.58465064]
[1765686356473,0.84216157,133.21,133.19,64.58465064]
[1765686357001,0.84216157,133.21,133.19,65.24465064]
[1765686359304,0.84216157,133.21,133.19,72.75115326]
[1765686359774,0.84216157,133.21,133.19,65.24465064]
[1765686360707,0.84216157,133.21,133.19,72.75115326]
[1765686360910,0.84216157,133.21,133.19,65.24465064]
[1765686363577,0.84216157,133.21,133.19,72.75115326]
[1765686363778,0.84216157,133.21,133.19,72.09115326]
[1765686367803,0.84216157,133.21,133.19,10.89115326]
[1765686367993,0.84216157,133.21,133.19,3.38465064]
[1765686368309,0.84216157,133.21,133.18,85.09511467]
[1765686368510,0.84216157,133.21,133.19,3.3829439]
[1765686369027,0.84216157,133.21,133.19,4.0429439]
[1765686369188,0.84216157,133.21,133.19,0.66]
[1765686378928,8.34919562,133.21,133.18,69.42]
[1765686379129,8.34919562,133.21,133.18,70.08]
[1765686379318,0.7,133.2,133.18,70.08]
[1765686379622,7.64919562,133.21,133.18,70.08]
[1765686379804,7.64919562,133.21,133.18,8.88]
[1765686379805,8.34919562,133.21,133.18,8.88]
[1765686381326,8.34919562,133.21,133.18,11.04522051]
[1765686382626,7.64919562,133.21,133.17,83.74876169]
[1765686382832,0.14216157,133.19,133.15,18.55523221]
[1765686383126,0.14216157,133.19,133.15,41.10907952]
[1765686383323,0.7,133.18,133.15,41.10907952]
[1765686383529,0.7,133.18,133.15,40.44907952]
[1765686383740,0.7,133.18,133.16,0.66]
[1765686384521,0.7,133.18,133.16,2.82522051]
[1765686385131,0.7,133.18,133.16,0.66]
[1765686385331,0.7,133.18,133.16,2.16522051]
[1765686385628,0.7,133.18,133.16,2.82522051]
[1765686387437,0.7,133.18,133.15,38.94385901]
[1765686387646,0.7,133.18,133.15,41.10907952]
[1765686387841,8.20869564,133.18,133.15,18.55523221]
[1765686388141,8.20869564,133.18,133.15,41.10907952]
[1765686388442,8.20869564,133.18,133.15,18.55523221]
[1765686389845,0.7,133.18,133.15,18.55523221]
[1765686390346,0.7,133.18,133.15,38.94385901]
[1765686390555,0.7,133.18,133.15,41.10907952]
[1765686391747,0.14216157,133.17,133.15,8.22]
[1765686392049,0.14216157,133.17,133.15,8.88]
[1765686393022,0.14216157,133.17,133.15,11.04522051]
[1765686400041,0.81216157,133.17,133.15,11.04522051]
[1765686403763,0.81216157,133.17,133.15,11.04643178]
[1765686405465,0.81216157,133.17,133.15,10.38643178]
[1765686406148,0.81216157,133.17,133.15,11.04643178]
[1765686410678,0.81216157,133.17,133.15,8.88]
[1765686410965,0.81216157,133.17,133.15,11.04643178]
[1765686414068,0.67,133.17,133.15,11.04643178]
[1765686414770,0.67,133.18,133.15,11.04643178]
[1765686417575,0.14216157,133.17,133.15,11.04643178]
[1765686418974,0.14216157,133.17,133.15,8.88]
[1765686419178,0.80216157,133.17,133.15,8.88]
[1765686419848,0.80216157,133.17,133.15,8.22]
[1765686422154,0.80216157,133.17,133.15,8.91]
[1765686424077,0.80216157,133.17,133.15,11.07643178]
[1765686426582,0.80216157,133.17,133.15,18.58653913]
[1765686436094,0.80216157,133.17,133.15,19.80481538]
[1765686438998,0.80216157,133.17,133.15,19.80479343]
[1765686446332,0.14216157,133.18,133.15,19.11479343]
[1765686446503,0.14216157,133.18,133.16,4.07468608]
[1765686447010,0.84216157,133.18,133.16,4.07468608]
[1765686447603,0.84216157,133.18,133.16,3.38468608]
[1765686447970,0.84216157,133.18,133.16,10.89433602]
[1765686449581,0.14216157,133.19,133.17,4.07468608]
[1765686449782,0.84216157,133.19,133.17,4.07468608]
[1765686453421,0.84216157,133.19,133.17,3.38468608]
[1765686453791,0.84216157,133.19,133.16,72.78433602]
[1765686454512,8.35044309,133.19,133.16,61.2]
[1765686454893,0.14216157,133.17,133.16,61.2]
[1765686455509,0.84216157,133.17,133.16,61.2]
[1765686456321,8.35136033,133.17,133.16,61.2]
[1765686456997,8.35136033,133.17,133.13,81.00598659]
[1765686457198,0.7,133.16,133.13,81.00598659]
[1765686459706,0.7,133.16,133.14,3.38468608]
[1765686461011,0.14216157,133.15,133.13,19.80594453]
[1765686461412,0.84216157,133.15,133.13,19.80594453]
[1765686462109,0.84216157,133.15,133.13,19.11594453]
[1765686462499,0.84216157,133.15,133.13,19.80594453]
[1765686470253,0.84216157,133.15,133.13,19.11594453]
[1765686472262,0.84216157,133.15,133.13,8.22]
[1765686472476,0.84216157,133.15,133.12,72.09666219]
[1765686472748,23.40109678,133.15,133.12,72.09666219]
[1765686473347,0.7,133.14,133.12,72.09666219]
[1765686474045,0.7,133.14,133.12,72.09835093]
[1765686474744,0.7,133.14,133.12,72.78835093]
[1765686476552,0.86216157,133.15,133.12,72.78835093]
[1765686476746,0.86216157,133.15,133.13,3.38637482]
[1765686479356,0.86216157,133.15,133.12,8.20197611]
[1765686479539,0.86216157,133.15,133.13,3.38637482]
[1765686482061,0.86216157,133.15,133.12,11.58835093]
[1765686482560,23.42279326,133.15,133.12,11.58835093]
[1765686483461,0.86216157,133.15,133.12,11.58835093]
[1765686484962,23.42279326,133.15,133.12,11.58835093]
[1765686485133,7.65257279,133.15,133.11,91.98063169]
[1765686485338,0.86216157,133.14,133.1,4.06637482]
[1765686485556,23.42618699,133.14,133.1,4.06637482]
[1765686485943,0.14216157,133.12,133.1,4.06637482]
[1765686486333,0.86216157,133.12,133.09,100.17732814]
[1765686486530,0.86216157,133.12,133.09,80.99967754]
[1765686486729,0.86216157,133.12,133.09,80.31967754]
[1765686486950,0.86216157,133.12,133.1,4.06637482]
[1765686487756,8.37422002,133.12,133.1,4.06637482]
[1765686488945,0.86216157,133.11,133.1,3.38637482]
[1765686489366,0.14216157,133.11,133.1,3.38637482]
[1765686490266,7.65474514,133.11,133.1,3.38637482]
[1765686497959,7.65474514,133.11,133.1,2.16797505]
[1765686498674,8.37474514,133.11,133.1,2.16797505]
[1765686498871,8.37474514,133.11,133.09,10.38797505]
[1765686499070,0.72,133.1,133.09,10.38797505]
[1765686499373,8.37474514,133.11,133.09,10.38797505]
[1765686499562,8.37474514,133.11,133.09,11.06797505]
[1765686499949,0.72,133.1,133.09,2.16797505]
[1765686500883,0.14216157,133.09,133.08,9.68]
[1765686501078,0.14216157,133.09,133.08,11.84797505]
[1765686502888,0.14216157,133.09,133.08,11.16797505]
[1765686503097,0.14216157,133.09,133.08,2.26797505]
[1765686504080,0.14216157,133.09,133.08,0.1]
[1765686504081,8.37587409,133.09,133.08,0.1]
[1765686504264,29.22384914,133.09,133.08,0.1]
[1765686515416,8.37587409,133.09,133.08,0.1]
[1765686515579,7.65587409,133.09,133.08,0.1]
[1765686516090,8.35587409,133.09,133.08,0.1]
[1765686517082,11.36531621,133.09,133.08,0.1]
[1765686518623,22.69216157,133.05,133.01,0.1]
[1765686518922,22.28352083,132.97,132.96,1e-08]
[1765686519201,0.14216157,132.91,132.85,0.68]
[1765686519404,0.14216157,132.91,132.87,0.68]
[1765686519704,0.14216157,132.89,132.88,3.23094986]
[1765686520013,8.38216157,132.89,132.88,3.23094986]
[1765686520302,0.14216157,132.89,132.88,2.55094986]
[1765686520507,0.14216157,132.89,132.88,3.23094986]
[1765686523590,7.66718226,132.89,132.88,2.55094986]
[1765686535633,0.14216157,132.89,132.88,3.26094986]
[1765686540552,8.38216157,132.89,132.88,3.26094986]
[1765686545772,0.14216157,132.9,132.88,3.26094986]
[1765686545968,20.9803424,132.95,132.89,0.71]
[1765686546153,8.24,132.94,132.89,0.71]
[1765686546352,8.24,132.94,132.89,2.88554483]
[1765686546554,8.24,132.94,132.89,0.71]
[1765686546858,0.14216157,132.93,132.9,0.71]
[1765686547169,7.66510208,132.93,132.9,0.71]
[1765686549164,8.36510208,132.93,132.89,6.23495824]
[1765686549865,8.36510208,132.93,132.89,8.41050307]
[1765686550868,0.14216157,132.91,132.89,8.41050307]
[1765686551373,0.14216157,132.91,132.9,0.71]
[1765686554144,0.14216157,132.92,132.9,69.43445447]
[1765686554371,0.14216157,132.92,132.9,71.6099993]
[1765686554672,0.14216157,132.92,132.91,0.71]
[1765686559650,8.38216157,132.93,132.91,0.71]
[1765686563776,8.38216157,132.93,132.91,61.91]
[1765686564154,8.38216157,132.93,132.91,61.89]
[1765686566166,0.14216157,132.93,132.91,61.89]
[1765686566368,8.38216157,132.93,132.91,61.89]
[1765686567582,0.14216157,132.93,132.91,61.89]
[1765686567886,8.38216157,132.93,132.91,61.89]
[1765686568068,8.38216157,132.93,132.91,61.88]
[1765686570259,0.14216157,132.93,132.91,61.88]
[1765686570466,8.38216157,132.93,132.91,61.88]
[1765686571791,0.14216157,132.93,132.91,61.88]
[1765686571976,8.38216157,132.93,132.91,61.88]
[1765686572578,0.14216157,132.93,132.91,61.88]
[1765686572782,8.38216157,132.93,132.91,61.88]
[1765686573376,8.38216157,132.93,132.92,0.68]
[1765686576484,8.38216157,132.93,132.91,61.88]
[1765686576485,15.90522765,132.93,132.91,61.88]
[1765686576876,8.35522765,132.93,132.91,61.88]
[1765686577072,8.38216157,132.92,132.91,61.88]
[1765686578598,8.38216157,132.92,132.91,0.68]
[1765686579692,0.14216157,132.92,132.91,0.68]
[1765686581716,0.14216157,132.91,132.9,64.59781907]
[1765686581877,0.14216157,132.91,132.9,65.27781907]
[1765686583916,0.14216157,132.92,132.9,65.27781907]
[1765686584206,0.14216157,132.92,132.91,0.68]
[1765686592716,22.5963168,132.95,132.91,0.68]
[1765686592914,8.24,132.94,132.91,4.07781907]
[1765686593091,0.14216157,132.93,132.91,4.07781907]
[1765686593282,0.14216157,132.93,132.92,4.07781907]
[1765686596384,0.14216157,132.94,132.92,65.27781907]
[1765686599606,0.85216157,132.94,132.92,61.2]
[1765686599807,8.37446249,132.94,132.92,61.2]
[1765686600313,0.71,132.93,132.92,61.2]
[1765686602225,8.23275633,132.93,132.92,61.2]
[1765686602425,0.14216157,132.92,132.9,61.87]
[1765686602629,9.09216157,132.92,132.9,61.2]
[1765686604630,16.61563425,132.92,132.9,61.2]
[1765686605122,15.90563425,132.92,132.9,61.2]
[1765686605427,0.71,132.91,132.88,2.55094986]
[1765686606327,8.23420994,132.91,132.88,2.55094986]
[1765686606629,0.14216157,132.89,132.88,2.55094986]
[1765686606796,0.14216157,132.89,132.88,3.22094986]
[1765686608526,0.14216157,132.89,132.88,2.55094986]
[1765686608732,0.85216157,132.89,132.88,2.55094986]
[1765686609826,0.14216157,132.89,132.88,2.55094986]
[1765686610124,7.66718226,132.89,132.88,2.55094986]
[1765686611023,8.37718226,132.89,132.88,2.55094986]
[1765686611427,7.66718226,132.89,132.88,2.55094986]
[1765686612924,8.37718226,132.89,132.88,2.55094986]
[1765686614430,7.66718226,132.89,132.88,2.55094986]
[1765686614923,8.37718226,132.89,132.88,2.55094986]
[1765686615820,7.66718226,132.89,132.88,2.55094986]
[1765686616912,8.37718226,132.89,132.88,2.55094986]
[1765686617614,7.66718226,132.89,132.88,2.55094986]
[1765686618734,0.14216157,132.89,132.88,2.55094986]
[1765686619315,8.24,132.9,132.88,10.74653685]
[1765686619516,8.24,132.9,132.89,0.67]
[1765686619730,0.14216157,132.91,132.89,0.67]
[1765686619930,0.14216157,132.9,132.89,0.67]
[1765686620820,8.38216157,132.9,132.89,0.67]
[1765686621215,0.14216157,132.9,132.89,0.67]
[1765686621415,0.14216157,132.89,132.88,64.42094986]
[1765686626153,0.14216157,132.89,132.88,3.22094986]
[1765686628634,0.80216157,132.89,132.88,2.55094986]
[1765686629024,0.14216157,132.89,132.88,2.55094986]
[1765686629747,0.14216157,132.89,132.88,3.25094986]
[1765686630248,0.14216157,132.89,132.88,2.55094986]
[1765686631757,0.14216157,132.89,132.88,3.25094986]
[1765686634955,0.14216157,132.89,132.88,2.55094986]
[1765686636373,0.14216157,132.89,132.88,3.25094986]
[1765686636855,0.14216157,132.89,132.88,2.55094986]
[1765686637854,0.14216157,132.89,132.88,3.25094986]
[1765686638031,0.14216157,132.89,132.88,2.55094986]
[1765686638962,8.38216157,132.89,132.88,2.55094986]
[1765686639753,0.14216157,132.89,132.88,2.55094986]
[1765686640166,8.38216157,132.89,132.88,2.55094986]
[1765686641034,0.14216157,132.89,132.88,2.55094986]
[1765686641658,8.38216157,132.89,132.88,2.55094986]
[1765686642467,0.14216157,132.89,132.88,2.55094986]
[1765686642852,8.38216157,132.89,132.88,2.55094986]
[1765686644569,0.14216157,132.89,132.88,2.55094986]
[1765686644962,8.38216157,132.89,132.88,2.55094986]
[1765686645171,0.14216157,132.89,132.88,2.55094986]
[1765686645551,8.38216157,132.89,132.88,2.55094986]
[1765686645749,0.14216157,132.89,132.88,2.55094986]
[1765686645958,8.38216157,132.89,132.88,2.55094986]
[1765686646165,0.14216157,132.89,132.88,2.55094986]
[1765686646366,8.38216157,132.89,132.88,2.55094986]
[1765686646772,0.14216157,132.89,132.88,2.55094986]
[1765686646978,8.38216157,132.89,132.88,2.55094986]
[1765686647673,0.14216157,132.89,132.88,2.55094986]
[1765686648074,8.38216157,132.89,132.88,2.55094986]
[1765686651780,9.04216157,132.89,132.88,2.55094986]
[1765686653780,8.38216157,132.89,132.88,2.55094986]
[1765686657582,8.38216157,132.89,132.88,3.24094986]
[1765686658895,8.38216157,132.89,132.88,2.55094986]
[1765686662998,16.55718226,132.89,132.88,2.55094986]
[1765686668706,15.90718226,132.89,132.88,2.55094986]
[1765686668899,8.38216157,132.89,132.88,2.55094986]
[1765686673709,8.38216157,132.89,132.88,3.24094986]
[1765686674118,8.38216157,132.89,132.88,2.55094986]
[1765686674412,9.03216157,132.89,132.88,2.55094986]
[1765686680517,16.55718226,132.89,132.88,2.55094986]
[1765686683624,15.90718226,132.89,132.88,2.55094986]
[1765686684412,16.55718226,132.89,132.88,2.55094986]
[1765686686730,8.38216157,132.89,132.88,3.25094986]
[1765686686924,8.38216157,132.89,132.88,14.1764786]
[1765686690915,0.14216157,132.89,132.88,14.1764786]
[1765686691121,0.14216157,132.92,132.88,75.3764786]
[1765686691457,0.14216157,132.93,132.91,3.39994175]
[1765686691835,0.14216157,132.93,132.92,0.7]
[1765686692025,0.14216157,132.93,132.91,3.39994175]
[1765686692226,0.14216157,132.93,132.91,4.09994175]
[1765686692627,0.14216157,132.93,132.92,0.7]
[1765686694649,0.14216157,132.93,132.91,4.09994175]